Cogmind - Beta 17 @@@ ROGUE MODE // 2026.07.19 @ 12:50:54 Player: nnnnsk Result: Self-destructed Performance ------------- Evolutions (4) 2000 Regions Visited (5) 1000 Robots Destroyed (35) 175 Value Destroyed (777) 777 Prototype IDs (8) 160 Alien Tech Used (0) 0 Bonus (800) 800 TOTAL SCORE: 4912 Bonus ------- Registered with UFD 300 Met Optimus in HQ 500 Cogmind --------- Core Integrity 733/850 Matter 103/300 Energy 123/160 System Corruption 1% Temperature Cool (0) Movement Flying (115) Ox1 Location -6/Factory Parts ------- > --- POWER (1) -------- Light Nuclear Core > --- PROPULSION (5) --- VTOL Module > --- UTILITY (7) ------ Small Storage Unit Hacking Suite Improved Hacking Suite Improved System Shield Authchip [Propulsion] > --- WEAPON (2) ------- (None) > --- INVENTORY (8) ---- Light Ion Engine Large Storage Unit Experimental Signal Interpreter Transmission Jammer Authchip [Device] CPS Tube (2) Power Sword Peak State ------------ > --- POWER ------------ Light Nuclear Core > --- PROPULSION ------- VTOL Module Cesium-ion Thruster Cesium-ion Thruster Nuclear Pulse Thruster Cooled Cesium-ion Thruster > --- UTILITY ---------- Small Storage Unit Terrain Scanner Advanced ECM Suite Hacking Suite Improved Hacking Suite Improved System Shield Authchip [Propulsion] > --- WEAPON ----------- Power Sword > --- INVENTORY -------- Light Ion Engine Flight Unit Large Storage Unit Experimental Signal Interpreter Transmission Jammer Authchip [Device] Rocket Launcher CPS Tube [Rating: 52] Favorites ----------- Power Improved Ion Engine Engine Improved Ion Engine Power Core Light Nuclear Core Propulsion Light Treads Treads Light Treads Flight Unit Cesium-ion Thruster Utility Large Storage Unit Device Terrain Scanner Storage Large Storage Unit Processor Visual Processing Unit Hackware Authchip [Propulsion] Protection Light Armor Plating Weapon Heavy Assault Rifle Energy Gun Beam Rifle Energy Cannon Beam Cannon Ballistic Gun Heavy Assault Rifle Launcher Grenade Launcher Special Weapon Mining Laser Impact Weapon Flail Slashing Weapon Power Sword Build | -11 -10 -10 -9 -9 -6 ------- Run | Yrd Mat Sub Rec Scr Fac Slots Evolved 8 | . . . . . 8 Power . | . . . . . . Propulsion 3 | . . . . . 3 Utility 5 | . . . . . 5 Weapon . | . . . . . . Parts Attached 45 | 8 6 2 12 4 13 Power 5 | 1 . . 3 . 1 Engine 4 | 1 . . 3 . . Core 1 | . . . . . 1 Reactor . | . . . . . . Propulsion 12 | 2 1 . 3 2 4 Treads 6 | 2 1 . 3 . . Leg . | . . . . . . Wheel . | . . . . . . Hover . | . . . . . . Flight 6 | . . . . 2 4 Utility 13 | 2 3 . 1 1 6 Device 4 | 1 1 . . . 2 Storage 3 | 1 1 . . . 1 Processor 1 | . 1 . . . . Hackware 4 | . . . . 1 3 Protection 1 | . . . 1 . . Artifact . | . . . . . . Weapon 15 | 3 2 2 5 1 2 Energy Gun 5 | 2 2 . 1 . . Energy Cannon 1 | . . . 1 . . Ballistic Gun 2 | 1 . . 1 . . Ballistic Cannon . | . . . . . . Launcher 2 | . . 1 . . 1 Special Weapon 2 | . . 1 . 1 . Impact Weapon 2 | . . . 2 . . Slashing Weapon 1 | . . . . . 1 Piercing Weapon . | . . . . . . Special Melee Weapon . | . . . . . . Unidentified Prototypes 1 | . . . . 1 . Corrupted Parts 1 | . . . . 1 . System Corruption 3 | . . . . 3 . Parts Lost 11 | . 1 1 2 . 7 Power 2 | . . 1 1 . . Propulsion 5 | . . . . . 5 Utility 2 | . 1 . . . 1 Weapon 2 | . . . 1 . 1 Highest Loss Streak 5 | . 1 1 2 . 5 To Critical Strikes . | . . . . . . Average Backups 13 | 4 13 15 14 14 8 Power 1 | . 2 2 . 1 1 Propulsion 4 | 2 5 5 5 3 . Utility 5 | . 3 4 4 7 4 Weapon 2 | . 2 4 3 2 1 Tool/Special . | . . . . . . Unused Backups 21 | . 2 . 5 9 5 Power . | . . . . . . Propulsion 8 | . 2 . 3 2 1 Utility 10 | . . . 2 5 3 Weapon 2 | . . . . 2 . Tool/Special 1 | . . . . . 1 Average Slot Usage (%) 97 | . 98 100 99 95 83 Engine 13 | . 14 14 13 14 . Treads 23 | . 28 28 28 18 . Flight 4 | . . . . 9 28 Device 1 | . 3 . . . 11 Storage 13 | . 14 14 14 14 6 Processor 2 | . 8 14 . . . Hackware 5 | . . . . 14 24 Protection 5 | . . . 13 . . Energy Gun 6 | . 14 14 8 . . Ballistic Gun 12 | . 14 6 13 11 . Impact Weapon 5 | . . . 4 12 . Peak Build Rating 52 | 9 10 10 13 29 52 Average Rating 14 | 6 8 10 11 17 46 On Entrance 9 | . 9 10 9 13 17 Avg Prop Armor Cover (%) . | . . . . . . Naked Turns . | . . . . . . Heaviest Build 36 | 14 30 31 36 32 18 Greatest Support 43 | 40 40 40 43 43 27 Greatest Overweight (x) 3 | . . . . 3 . Average Overweight (x) . | . . . . . . Largest Inventory Capacity 15 | 8 15 15 15 15 15 Average Capacity 14 | 7 14 15 15 15 8 Most Carried 15 | 8 15 15 15 15 14 Average Carried 13 | 4 13 15 14 14 7 Final Capacity 15 | 8 15 15 15 15 8 Final Carried 15 | 8 15 15 15 15 7 Class Distribution -------------------- 65% | Mutant 31% | Scavenger-Mutant 3% | Hacker-Sprinter Dominant Class ---------------- Mutant | -10/Materials Mutant | -10/Subcaves Scavenger-Mutant | -9/Recycling Mutant | -9/Scraptown Hacker-Sprinter | -6/Factory Resources | -11 -10 -10 -9 -9 -6 ----------- Run | Yrd Mat Sub Rec Scr Fac Matter Collected 843 | 307 153 74 299 10 . Remotely . | . . . . . . Salvage Created 1296 | 125 366 55 750 . . Parts 64 | 8 22 7 27 . . Haulers Intercepted 1 | . 1 . . . . Recyclers Shooed 2 | 1 . . 1 . . Parts Field Recycled . | . . . . . . Retrieved Matter . | . . . . . . Parts Self-Destructed 9 | . . 9 . . . Prevented . | . . . . . . Parts Restored . | . . . . . . Kills | -11 -10 -10 -9 -9 -6 ------- Run | Yrd Mat Sub Rec Scr Fac Combat Hostiles Destroyed 22 | . 8 4 10 . . Guns 15 | . 8 4 3 . . AOE 5 | . . . 5 . . Classes Destroyed 15 | 3 6 . 6 . . Worker 2 | 1 1 . . . . Builder 2 | . 1 . 1 . . Tunneler 2 | 2 . . . . . Hauler 1 | . 1 . . . . Recycler 3 | 1 . . 2 . . Operator 1 | . 1 . . . . Watcher 2 | . 2 . . . . Swarmer 7 | . 3 4 . . . Grunt 6 | . 5 . 1 . . Brawler 1 | . . . 1 . . Duelist 1 | . . . 1 . . Protector 2 | . . . 2 . . Sentry 3 | . . . 3 . . Hunter 1 | . . . 1 . . Programmer 1 | . . . 1 . . Best Kill Streak 6 | 3 4 4 6 . . Combat Bots Only 5 | . 3 4 5 . . Max Kills in Single Turn 3 | 1 1 1 3 . . Gunslinging . | . . . . . . Exploded 3 | . . . 3 . . Melee . | . . . . . . Uniques/NPCs Destroyed . | . . . . . . Combat | -11 -10 -10 -9 -9 -6 -------- Run | Yrd Mat Sub Rec Scr Fac Hostile Shots Fired 198 | . 40 73 40 . 45 Missed 67 | . 11 23 14 . 19 Hits 131 | . 29 50 26 . 26 Projectile 131 | . 29 50 26 . 26 Critical Strikes 1 | . . . 1 . . Part Disruptions 1 | . . . 1 . . Damage Taken 1549 | . 324 362 430 . 433 Core 302 | . 69 55 61 . 117 Absorbed by Shields . | . . . . . . Core Remaining (%) 63 | 100 . . . 26 . Volleys Fired 92 | 9 45 11 25 . 2 Largest 2 | 2 2 2 2 . 1 Hottest 100 | 60 85 100 100 . 33 Shots Fired 163 | 18 90 16 37 . 2 Gun 145 | 18 90 10 27 . . Cannon 3 | . . . 3 . . Launcher 14 | . . 5 7 . 2 Special 1 | . . 1 . . . Kinetic 71 | 9 45 5 12 . . Thermal 75 | 9 45 6 15 . . Explosive 14 | . . 5 7 . 2 Electromagnetic 3 | . . . 3 . . Robot Hit Streak 19 | 6 12 13 19 . . Robot Miss Streak 3 | 2 3 1 1 . 1 Penetration Max . | . . . . . . Secondary Targets 3 | . 1 2 . . . Max Gunslinging Chain 1 | . 1 1 . . . Shots Hit Robots 131 | 12 63 7 43 . 6 Core Hits 66 | 5 23 5 31 . 2 Critical Kills . | . . . . . . Critical Parts Destroyed 1 | . . . 1 . . Critical Strikes 6 | . . 1 4 . 1 Burn 4 | . . 1 3 . . Smash 1 | . . . 1 . . Sever 1 | . . . . . 1 Melee Attacks 26 | . . . 8 . 18 Impact 8 | . . . 8 . . Slashing 18 | . . . . . 18 Piercing . | . . . . . . Sneak Attacks 5 | . . . 5 . . Combat Hostiles . | . . . . . . Follow-up Attacks . | . . . . . . Damage Inflicted 2958 | 149 765 129 1655 . 260 Guns 1376 | 149 765 102 360 . . Cannons 53 | . . . 53 . . Explosions 740 | . . 27 669 . 44 Melee 789 | . . . 573 . 216 Ramming . | . . . . . . Kinetic 724 | 82 446 26 170 . . Thermal 672 | 67 319 76 210 . . Explosive 740 | . . 27 669 . 44 Electromagnetic 33 | . . . 33 . . Impact 573 | . . . 573 . . Slashing 216 | . . . . . 216 Piercing . | . . . . . . Highest Corruption 3 | . . . . 3 1 Average Corruption 1 | . . . . 3 1 Corruption Purged . | . . . . . . Corruption Blocked . | . . . . . . Effects 1 | . . . . . 1 Parts Rejected 1 | . . . . . 1 Overload Shots . | . . . . . . Overflow Damage 327 | . . . 308 . 19 Projectiles . | . . . . . . Explosions . | . . . . . . Melee 327 | . . . 308 . 19 Knockbacks 1 | . . . 1 . . Impact 1 | . . . 1 . . Kinetic . | . . . . . . Secondary . | . . . . . . Self-Inflicted Damage 76 | . . . 35 . 41 Shots 3 | . . . 2 . 1 Rammed . | . . . . . . Targets Rammed . | . . . . . . Kicked . | . . . . . . Crushed . | . . . . . . Highest Temperature 237 | . 72 . 237 . . Average Temperature 65 | . 21 . 105 . . Received Heat Transfer 318 | . 123 150 45 . . Effects 3 | . . . 3 . . Interference 3 | . . . 3 . . Siege Activations . | . . . . . . Martial Activations . | . . . . . . Shielding Activations . | . . . . . . Robots Disrupted . | . . . . . . Combat Hostiles . | . . . . . . Robots Corrupted 2 | . . . 2 . . Combat Hostiles . | . . . . . . Parts Fried 3 | . . . 3 . . Impact Corruptions 12 | . . . 12 . . Robots Melted . | . . . . . . Combat Hostiles . | . . . . . . Parts Melted 1 | 1 . . . . . Heat Transferred 1969 | 150 820 259 740 . . Parts Sabotaged . | . . . . . . Parts Stolen . | . . . . . . Parts Stripped . | . . . . . . Power Chain Reactions . | . . . . . . Alert | -11 -10 -10 -9 -9 -6 ------- Run | Yrd Mat Sub Rec Scr Fac Maximum Alert Level 1 | . . . 1 . . Low Security (%) 99 | 100 100 . 98 . 100 Level 1 . | . . . 1 . . Level 2 . | . . . . . . Level 3 . | . . . . . . Level 4 . | . . . . . . Level 5 . | . . . . . . High Security . | . . . . . . Max Security . | . . . . . . Peak Influence 212 | 5 90 . 212 . 53 Initial 63 | . . . 63 . . Average 26 | 1 13 . 36 . 9 Influence Increases 1084 | 20 290 215 430 . 129 Destroy 0b10 Robot/C 400 | . 160 80 160 . . Destroy 0b10 Robot/NC 110 | 20 30 . 60 . . Destroy Leader 36 | . 36 . . . . Successful Hack 55 | . 18 . 16 . 21 Select Force Hacks 180 | . . . 180 . . Destroy Structure 33 | . 1 . 14 . 18 Partial Spotted 45 | . . . . . 45 Lose Combat Pursuer 225 | . 45 135 . . 45 Influence Decreases 1082 | 20 235 137 563 . 127 Entered New Map 97 | . . 27 70 . . Time Decay 878 | 20 225 100 473 . 60 Lost Part 107 | . 10 10 20 . 67 Squads Dispatched 2 | . . . . . 2 Investigation . | . . . . . . Extermination 1 | . . . . . 1 Reinforcement 1 | . . . . . 1 Assault . | . . . . . . Garrison . | . . . . . . Intercept . | . . . . . . Searches Triggered . | . . . . . . Construction Impeded . | . . . . . . Haulers Reinforced . | . . . . . . Active Scanning Responses . | . . . . . . Cargo Convoy Interrupts . | . . . . . . Stealth | -11 -10 -10 -9 -9 -6 --------- Run | Yrd Mat Sub Rec Scr Fac Distress Signals 2 | . 1 . . . 1 Communications Jammed . | . . . . . . Distress Signals . | . . . . . . Times Spotted 62 | . 19 15 6 . 22 Peak Tracking Total 9 | . 5 5 3 . 9 Tactical Retreats 8 | . 2 4 . . 2 ECM-based Alert Blocks 13 | . . . . . 13 Traps | -11 -10 -10 -9 -9 -6 ------- Run | Yrd Mat Sub Rec Scr Fac Traps Triggered . | . . . . . . Indirectly . | . . . . . . Trap Hack Attempts . | . . . . . . Triggered . | . . . . . . Disarmed . | . . . . . . Reprogrammed . | . . . . . . Reused . | . . . . . . Traps Extracted . | . . . . . . Installed . | . . . . . . Triggered . | . . . . . . Machines | -11 -10 -10 -9 -9 -6 ---------- Run | Yrd Mat Sub Rec Scr Fac Machines Disabled 2 | . . 2 . . . Max in Single Turn 2 | . . 2 . . . Machines Repaired . | . . . . . . Machines Dismantled . | . . . . . . Machines Sabotaged . | . . . . . . Overloaded Fab Kills . | . . . . . . Hacking | -11 -10 -10 -9 -9 -6 --------- Run | Yrd Mat Sub Rec Scr Fac Machines Accessed 31 | . 6 . 12 6 7 Terminals 17 | . 6 . 6 . 5 Fabricators 1 | . . . . . 1 Repair Stations . | . . . . . . Recycling Units 6 | . . . 6 . . Scanalyzers 1 | . . . . . 1 Garrison Access . | . . . . . . Total Hacks 98 | . 19 . 21 43 15 Successful 78 | . 12 . 16 43 7 Failed 20 | . 7 . 5 . 8 Catastrophic . | . . . . . . Database Lockouts . | . . . . . . Manual 41 | . 16 . 20 . 5 Terminals 46 | . 19 . 15 . 12 Fabricators 1 | . . . . . 1 Repair Stations . | . . . . . . Recycling Units 6 | . . . 6 . . Scanalyzers 2 | . . . . . 2 Garrison Access . | . . . . . . Terminal Hacks 54 | . 5 . 3 43 3 Record 38 | . 2 . . 36 . Robot Analysis 7 | . . . . 7 . Branch Access Points 1 | . . . . . 1 Terminal Index 2 | . . . 1 . 1 Locate Traps 4 | . 3 . 1 . . Zone Layout 2 | . . . 1 . 1 Fabricator Hacks 1 | . . . . . 1 Network Status 1 | . . . . . 1 Repair Station Hacks . | . . . . . . Recycling Unit Hacks . | . . . . . . Scanalyzer 2 | . . . . . 2 Insert Component 1 | . . . . . 1 Retrieve Study 1 | . . . . . 1 Garrison Access Hacks . | . . . . . . Unauthorized Hacks 21 | . 7 . 13 . 1 Terminals 15 | . 7 . 7 . 1 Botnet 3 | . 1 . 2 . . Operators 2 | . 1 . . . 1 Skim 10 | . 5 . 5 . . Fabricators . | . . . . . . Repair Stations . | . . . . . . Recycling Units 6 | . . . 6 . . Tunnel 6 | . . . 6 . . Scanalyzers . | . . . . . . Garrison Access . | . . . . . . Data Cores Recovered 1 | . 1 . . . . Used . | . . . . . . Hacking Detections 16 | . 6 . 4 . 6 Full Trace Events . | . . . . . . Feedback Events . | . . . . . . Feedback Blocked . | . . . . . . Robot Schematics Acquired . | . . . . . . Robots Built . | . . . . . . Authchips . | . . . . . . Time . | . . . . . . Total Robot Build Rating . | . . . . . . Part Schematics Acquired . | . . . . . . Parts Built . | . . . . . . Authchips . | . . . . . . Time . | . . . . . . Total Part Build Rating . | . . . . . . Part Studies Acquired 1 | . . . . . 1 Parts Repaired . | . . . . . . Time . | . . . . . . Parts Recycled . | . . . . . . Recycled Matter . | . . . . . . Retrieved Matter . | . . . . . . Retrieved Components . | . . . . . . Parts Scanalyzed . | . . . . . . Part Schematics Acquired . | . . . . . . Parts Damaged . | . . . . . . Bothacking | -11 -10 -10 -9 -9 -6 ------------ Run | Yrd Mat Sub Rec Scr Fac Used RIF Installer . | . . . . . . Robots Hacked . | . . . . . . Non-combat . | . . . . . . Combat . | . . . . . . Robot Hacks Applied . | . . . . . . Relay Couplers Released . | . . . . . . Fabnet Peak Effective % . | . . . . . . Robots Rewired . | . . . . . . Allies Hacked . | . . . . . . Hacks Repelled . | . . . . . . Allies | -11 -10 -10 -9 -9 -6 -------- Run | Yrd Mat Sub Rec Scr Fac Total Allies . | . . . . . . Largest Group . | . . . . . . Highest-Rated Group . | . . . . . . Highest-Rated Ally . | . . . . . . Initial UFD Resources 23 | . . . . . 23 Total Orders . | . . . . . . Ally Attacks . | . . . . . . Total Damage . | . . . . . . Kills . | . . . . . . Allies Corrupted . | . . . . . . Allies Melted . | . . . . . . Intel | -11 -10 -10 -9 -9 -6 ------- Run | Yrd Mat Sub Rec Scr Fac Active Infowar (turns) 1627 | 40 1130 202 57 . 198 Optics 1073 | . 814 202 57 . . Terrain 547 | 40 316 . . . 191 ECM 21 | . . . . . 21 Robot Analysis Total 7 | . . . . 7 . Derelict Logs Recovered . | . . . . . . Drone Launches . | . . . . . . Drone Recoveries . | . . . . . . Exploration | -11 -10 -10 -9 -9 -6 ------------- Run | Yrd Mat Sub Rec Scr Fac Turns Passed 6615 | 172 1285 202 2436 2301 219 Spaces Moved 3894 | 81 481 106 1445 1277 504 Core 3 | 3 . . . . . Treads 3060 | 78 481 106 1445 950 . Legs . | . . . . . . Wheels . | . . . . . . Hover . | . . . . . . Flight 831 | . . . . 327 504 Fastest Speed 24 | 50 160 160 160 160 24 Average Speed 148 | 155 160 160 160 177 26 Slowest Speed 272 | 160 160 160 160 272 32 Overloaded Moves . | . . . . . . Propulsion Burnouts . | . . . . . . Robots Hopped 4 | . . . . . 4 Potential Cave-ins . | . . . . . . Cave-ins Triggered . | . . . . . . Exploration Rate (%) 47 | 5 74 6 99 86 17 Regions Visited 5 Branch Regions 3 Pre-discovered Areas 6 | . . . 6 . . Known Exits Taken 2 | . 1 1 . . . Unknown Exits Taken 3 | 1 . . 1 1 . Scrap Searched 3 | . . . . 3 . Spaces Dug 9 | . . . . . 9 Terrain Destroyed 67 | . . 29 17 . 21 Melee 9 | . . . . . 9 Projectile . | . . . . . . AOE 58 | . . 29 17 . 12 Terrain Rammed . | . . . . . . Walls Destroyed . | . . . . . . Machines Disabled . | . . . . . . Actions | -11 -10 -10 -9 -9 -6 --------- Run | Yrd Mat Sub Rec Scr Fac Total 4535 | 105 909 120 1518 1325 558 Wait 389 | . 364 2 10 . 13 Move 3882 | 80 480 105 1444 1276 497 Hop 3 | . . . . . 3 Pick Up 46 | 8 9 . 6 20 3 Fast Attach 11 | 7 1 . . 2 1 Attach 17 | . . . 3 2 12 Detach 2 | . . . . . 2 Swap 26 | 1 5 2 13 1 4 Drop 40 | . 5 . 8 24 3 Fire 92 | 9 45 11 25 . 2 Melee 26 | . . . 8 . 18 Ram . | . . . . . . Kick . | . . . . . . Crush . | . . . . . . Escape Stasis . | . . . . . . Rewire 1 | . . . 1 . . Trap . | . . . . . . Miscellaneous . | . . . . . . Route ------- -11/Scrapyard -10/Materials (discovered 6 exits: *Mat x3 / *Min x2 / *Sub) -10/Subcaves (discovered 3 exits: Mat x2 / *Rec) -9/Recycling (discovered 2 exits: [*Fac] / *Scr) -9/Scraptown (discovered 2 exits: *Fac x2) -6/Factory (discovered 2 exits: Low x2) History --------- Turn | Location | Event 25 | -11/Scrapyard | Discovered new exit (range 15) 173 | -11/Scrapyard | Entered Materials 310 | -10/Materials | Build established: Mutant 489 | -10/Materials | Discovered new exit (range 5) 494 | -10/Materials | Discovered new exit (range 7) 554 | -10/Materials | Discovered new exit (range 16) 720 | -10/Materials | Discovered new exit (range 18) 927 | -10/Materials | Learned location of 2 exits from Subcaves 988 | -10/Materials | Identified exit to Materials 988 | -10/Materials | Identified exit to Subcaves 1038 | -10/Materials | Learned 2 Storage zone layouts 1125 | -10/Materials | Learned Storage security intel 1154 | -10/Materials | Learned 4 Subcaves zone layouts 1194 | -10/Materials | Learned location of 2 exits from Materials 1243 | -10/Materials | Identified exit to Mines 1458 | -10/Materials | Entered Subcaves 1459 | -10/Subcaves | Approached by a straggling Scientist 1459 | -10/Subcaves | Identified exit to Recycling 1460 | -10/Subcaves | Identified exit to Materials 1660 | -10/Subcaves | Entered Recycling 1760 | -9/Recycling | Core integrity fell below 50% 2032 | -9/Recycling | Discovered new exit (range 5) 2323 | -9/Recycling | Learned location of 1 exit from Storage 2349 | -9/Recycling | Build established: Scavenger-Mutant 2387 | -9/Recycling | Learned 2 Materials zone layouts 2439 | -9/Recycling | Learned Materials emergency access door positions 2479 | -9/Recycling | Learned location of 2 exits from Materials 2510 | -9/Recycling | Learned location of 1 exit from Storage 2561 | -9/Recycling | Learned Storage stockpile data 2600 | -9/Recycling | Learned Storage emergency access door positions 4057 | -9/Recycling | Scanned before Scraplab entrance 4080 | -9/Recycling | Entered Scraplab 4093 | -9/Recycling | Discovered new exit (range 2) 4096 | -9/Recycling | Entered Scraptown 4098 | -9/Scraptown | System corruption cleaned by C-Scrubber 4373 | -9/Scraptown | Visited Symbiants 4392 | -9/Scraptown | Build established: Mutant 4415 | -9/Scraptown | Visited The Evicted 4439 | -9/Scraptown | Heard Great Nut preacher, LISTEN AND RECITE! 4452 | -9/Scraptown | Visited SPCMW 4868 | -9/Scraptown | Discovered new exit (range 5) 5049 | -9/Scraptown | Visited Cave Peace 5097 | -9/Scraptown | Visited Fellowship of the Rings 5135 | -9/Scraptown | Visited UFD Registry 5135 | -9/Scraptown | Registered with UFD as "Nukeplate" 5180 | -9/Scraptown | Visited Science Guys 5209 | -9/Scraptown | Visited Analyses Database 5285 | -9/Scraptown | Visited Research Penetration Think Tank 5482 | -9/Scraptown | Visited Curators Association 5514 | -9/Scraptown | Visited Infowarlord's Domain 5530 | -9/Scraptown | Found Exp. Signal Interpreter 5580 | -9/Scraptown | Visited Junk Repository 5758 | -9/Scraptown | Visited Junk Repository 5926 | -9/Scraptown | Visited Abandonware Association 5959 | -9/Scraptown | Learned abandonware demo "SHUTEYE.EXE" 6032 | -9/Scraptown | Visited Junk Cannon Lab 6066 | -9/Scraptown | Found Prototype Special Weapon 6066 | -9/Scraptown | Identified Junk Cannon 6272 | -9/Scraptown | Met Optimus 6272 | -9/Scraptown | Accepted into 0bPrime 6387 | -9/Scraptown | Discovered new exit (range 5) 6397 | -9/Scraptown | Entered Factory 6397 | -6/Factory | Evolved 8 slots: Propulsion x3, Utility x5 6550 | -6/Factory | Identified exit to Lower Caves 6616 | -6/Factory | Self-destructed Last Messages --------------- >>Access(Branch) Found 2 branch access points: (85,35) Lower Caves (111,186) Lower Caves Map updated. 06551_ System corrupted: Power Sword rejected. 06551_ Acquired Power Sword. 06551_ Cesium-ion Thruster destroyed. 06555_ K-01 Serf cleans the Power Conduit. 06589_ Connecting with Terminal... >>Layout(Zone) Retrieving Zone 8C layout... Downloaded map data. 06594_ Terrain Scanner destroyed. 06604_ W-25 Informer sends out distress signal. 06607_ Nuclear Pulse Thruster destroyed. 06608_ Flight Unit destroyed. 06608_ Dropped Adv. ECM Suite. 06613_ Cld. Cesium-ion Thruster destroyed. 06615_ Rocket Launcher destroyed. Map ----- +----------------------------------------------------+ | ????????????????????+ ######/#######?# | | ????????????????????# # #?######### | | ????????????????????# # #?????????? | | ????????????????????# # #?????????? | | ????????????????????# # #?????????? | | ????????????????????# # """ """ #??#??????? | | ????????????????????# + """ """ #?????????? | | ????????????????????# # """ """ #?????????? | | ????????????????????# # #?????????? | | ????????????????????# # """ """ #?????????? | | ????????????????????# # """ """ #?????????? | | ????????????????????# # """ """ #?????????? | | ??????????????????? # #?????????? | | ???????????????????? k##############?????????? | | ???????????????????? w #? ???????????????? | | ????????????????????# #?""" ""???????????????? | | ????????????????????# s #?""" """??????????????? | | ???????????########## !# """ """??????????????? | | ?????????? # "" "" ??????????? | | ?????????? ss# "" "" % #?????????? | | ?????????? + #?????????? | | ?????????? ] #?????????? | | ?????????? k #?????????? | | ???????????########## #?????????? | | ????????????????????# #?????????? | | ????????????????????# @ ! = #?????????? | | ????????????????????# ##############?????????? | | ????????????????????# #??????????????????????? | | ????????????????????# #??????????????????????? | | ????????????????????# #??????????????????????? | | ????????????????????# #??????????????????????? | | ????????????????????# #??????????????????????? | | ????????????????????# ??????????????????????? | | ????????????????????# ??????????????????????? | | ????????????????????# ??????????????????????? | | ????????????????????# ??????????????????????? | | ????????????????????# ??????????????????????? | | ????????????????????#######??????????????????????? | | ?????????????????????????????????????????????????? | | ?????????????????????????????????????????????????? | | ?????????????????????????????????????????????????? | | ?????????????????????????????????????????????????? | | ?????????????????????????????????????????????????? | | ?????????????????????????????????????????????????? | | ?????????????????????????????????????????????????? | | ?????????????????????????????????????????????????? | | ?????????????????????????????????????????????????? | | ?????????????????????????????????????????????????? | | ?????????????????????????????????????????????????? | | ?????????????????????????????????????????????????? | +----------------------------------------------------+ Best States ------------- Heat Dissipation 37 Energy Generation 14 Energy Capacity 265 Matter Stores 300 Matter Capacity 300 Sight Range 18 Terrain Scan Range 16 Terrain Scan Density 10 ECM Strength 2 Armor Coverage 150 Evasion (%) 65 Recoil Reduction 2 Offensive Hacking 22 Defensive Hacking 12 Authchip Count 2 Item Schematics ----------------- None Robot Schematics ------------------ None Fabricated ------------ Nothing Repaired ---------- Nothing Studied --------- VTOL Module | -6/Factory | Hacked Alien Tech Used ----------------- None Achievements -------------- None Challenges ------------ None Game ------ Seed CompactAerolevSheargun Manual? 0 Play Time 00:43:35 Cumulative 130.8 hours Start 2026.07.19 @ 12:01:20 End 2026.07.19 @ 12:50:54 Sessions 1 Manual Loads 0 Difficulty Rogue Special Mode None Game No. 125 Rogue 118 Adventurer 0 Explorer 7 Win Type - Total 1 Types 1/0/0/0/0/0/0/0/0/0 Lore% 37 Gallery% 47 Achievement% 38 Wizard Run 0 Options --------- Layout 1 ASCII 0 Keyboard 1 Movement Numpad Keybinds 0 Fullscreen 2 Font 32/SmallcapsGlow Map View 50x35 Zoom Use 0% Tactical HUD 1 Map Filters NONE Filters NONE Steam 1 RUN: 16c8f2a3-37e5-4e5d-aec1-2314379fb24d